bitfinex/quotes_ETHUSD_20241001
["timestamp","ask_amount","ask_price","bid_price","bid_amount"]
[1727784050826,3.79738,2633.4,2633.1,0.10747326]
[1727784051438,11.5775605,2633.6,2633.1,0.10747326]
[1727784051648,7.7803505,2633.6,2633.1,0.10747326]
[1727784051972,11.5775205,2633.6,2633.1,0.10747326]
[1727784052343,3.79723,2633.5,2633.1,0.10747326]
[1727784054451,7.7803205,2633.6,2633.1,0.10747326]
[1727784054673,11.5775305,2633.6,2633.1,3.90525326]
[1727784055083,1.58413679,2633.5,2633.1,3.90525326]
[1727784057167,5.38144679,2633.5,2633.1,0.10747326]
[1727784057366,5.38144679,2633.5,2633.1,3.90526326]
[1727784057758,5.38135679,2633.5,2633.1,3.90526326]
[1727784059313,5.38135679,2633.5,2633.1,0.10747326]
[1727784060328,3.79743,2633.4,2633.1,0.10747326]
[1727784060503,3.79756,2633.3,2633.1,0.10747326]
[1727784061097,1.61832371,2633.4,2633.1,0.10747326]
[1727784061098,5.41571371,2633.4,2633.1,0.10747326]
[1727784061616,9.21317371,2633.4,2633.1,0.10747326]
[1727784061799,5.41571371,2633.4,2633.1,0.10747326]
[1727784062615,5.38136679,2633.5,2633.1,0.10747326]
[1727784062783,5.38136679,2633.5,2633.1,3.90524326]
[1727784063196,5.38136679,2633.5,2633.1,0.10747326]
[1727784063718,5.38136679,2633.5,2633.1,3.90521326]
[1727784063918,1.58413679,2633.5,2633.1,3.90521326]
[1727784064128,1.58413679,2633.5,2633.2,4.57726]
[1727784064325,1.58413679,2633.5,2633.3,0.10722384]
[1727784064527,1.58413679,2633.5,2633.2,4.57726]
[1727784064695,1.58413679,2633.5,2633.3,0.10722384]
[1727784065096,1.58413679,2633.5,2633.2,0.7797]
[1727784065423,1.58413679,2633.5,2633.3,0.10722384]
[1727784065790,1.58413679,2633.5,2633.4,6.20489371]
[1727784066010,1.58413679,2633.5,2633.4,6.31199785]
[1727784066726,1.58413679,2633.5,2633.4,6.86199785]
[1727784067596,1.58413679,2634.1,2633.7,3.79681]
[1727784068293,1.58413679,2634.1,2633.8,3.90337362]
[1727784069290,1.58413679,2634.1,2633.8,4.67827362]
[1727784070513,5.38050679,2634.1,2633.8,0.10659362]
[1727784070887,3.79637,2634.1,2633.7,3.79691]
[1727784071226,6.22620371,2634.2,2633.8,0.10643884]
[1727784071426,0.8116,2634.2,2633.8,3.90313884]
[1727784071615,4.60783,2634.2,2633.8,3.90313884]
[1727784072686,0.8116,2634.2,2633.8,3.90313884]
[1727784073628,3.79594,2634.4,2633.9,3.79655]
[1727784073790,3.79608,2634.3,2634.0,0.8113]
[1727784073990,3.79594,2634.4,2634.0,0.91750099]
[1727784074195,6.21097371,2634.5,2634.0,4.71398099]
[1727784074396,6.21097371,2634.5,2634.0,0.91750099]
[1727784074600,4.59265,2634.5,2634.1,3.79629]
[1727784074823,3.79551,2634.7,2634.2,3.79621]
[1727784075125,5.41383371,2634.7,2634.3,3.79606]
[1727784075330,5.41383371,2634.7,2634.4,0.10572251]
[1727784075331,3.79565,2634.6,2634.4,0.10572251]
[1727784075538,3.79565,2634.6,2634.1,7.59258]
[1727784075539,3.79565,2634.6,2634.2,3.79619]
[1727784075840,0.8309,2634.8,2634.3,3.90190212]
[1727784075841,4.62625,2634.8,2634.3,3.90190212]
[1727784075995,4.62625,2634.8,2634.3,0.10584212]
[1727784075996,1.61832371,2634.7,2634.3,0.10584212]
[1727784076196,5.41390371,2634.7,2634.3,0.10584212]
[1727784076416,5.41390371,2634.7,2634.2,4.69215341]
[1727784076610,5.41390371,2634.7,2634.4,0.10572251]
[1727784076817,5.41390371,2634.7,2634.2,3.79616]
[1727784077017,3.79558,2634.7,2634.5,0.10560292]
[1727784077229,3.79567,2634.6,2634.1,3.79629]
[1727784077896,3.79573,2634.6,2634.1,4.31266441]
[1727784078098,1.61832371,2634.5,2634.1,4.31266441]
[1727784078328,1.61832371,2634.5,2634.2,3.90217174]
[1727784079435,1.61832371,2634.5,2634.2,0.10596174]
[1727784080130,0.7919,2634.4,2634.2,0.10596174]
[1727784080434,0.7919,2634.4,2634.3,0.10584212]
[1727784080597,0.7919,2634.4,2634.1,0.46078]
[1727784080801,0.7919,2634.4,2634.3,0.10584212]
[1727784080998,0.7919,2634.4,2634.1,4.25713]
[1727784081203,0.7919,2634.4,2634.3,0.10578719]
[1727784081523,0.7919,2634.4,2634.1,4.25713]
[1727784081697,0.7919,2634.4,2634.3,0.10578719]
[1727784081903,0.7919,2634.4,2634.2,0.10586921]
[1727784082103,0.7919,2634.4,2634.3,0.10574959]
[1727784082414,0.7919,2634.4,2634.1,3.79635]
[1727784082609,0.7919,2634.4,2634.3,0.10574959]
[1727784082813,0.7919,2634.4,2634.1,4.636777]
[1727784082814,0.7919,2634.4,2634.1,3.79635]
[1727784083014,0.7919,2634.4,2634.3,0.10574959]
[1727784083421,0.7919,2634.4,2634.1,3.79635]
[1727784083602,0.7919,2634.4,2634.3,0.10574959]
[1727784083801,0.7919,2634.4,2634.1,3.79635]
[1727784084001,0.7919,2634.4,2634.3,0.10574959]
[1727784084202,0.7919,2634.4,2634.2,0.10586921]
[1727784084461,0.7919,2634.4,2634.1,4.636777]
[1727784084761,0.7919,2634.4,2634.3,0.10574959]
[1727784084909,4.58783,2634.4,2634.2,0.10586921]
[1727784085246,5.41439371,2634.3,2633.9,0.379662]
[1727784085538,3.7963,2634.2,2633.8,0.7978]
[1727784086035,5.41468371,2634.1,2633.8,0.7978]
[1727784086242,5.41468371,2634.1,2633.7,3.79683]
[1727784086407,5.41468371,2634.1,2633.7,4.633543]
[1727784086607,1.61832371,2634.1,2633.7,8.430403]
[1727784087005,1.61832371,2634.1,2633.8,3.79671]
[1727784087432,5.41440371,2634.3,2633.8,3.79671]
[1727784087634,5.41440371,2634.3,2633.7,8.430413]
[1727784087635,3.79628,2634.2,2633.7,8.430413]
[1727784087805,3.79628,2634.2,2633.8,3.79676]
[1727784088994,1.61832371,2634.3,2633.8,3.79676]
[1727784089209,5.41448371,2634.3,2633.8,3.79676]
[1727784089703,1.58303608,2634.4,2634.1,3.79622]
[1727784089995,1.61832371,2634.5,2634.1,3.79635]
[1727784090598,1.61832371,2634.5,2634.2,3.79617]
[1727784090800,1.61832371,2634.5,2634.1,4.636464]
[1727784090984,1.61832371,2634.5,2634.2,3.79614]
[1727784091459,1.61832371,2634.5,2634.2,3.79612]
[1727784092000,7.82228979,2634.7,2634.2,3.79612]
[1727784092368,11.61787979,2634.7,2634.2,3.79612]
[1727784093013,7.82228979,2634.7,2634.3,3.79596]
[1727784093373,7.82228979,2634.7,2634.4,0.10562709]
[1727784095444,3.79566,2634.6,2634.4,0.10562709]
[1727784095725,7.82228979,2634.7,2634.4,0.10562709]
[1727784095885,7.82228979,2634.7,2634.5,0.1055205]
[1727784096091,3.79564,2634.6,2634.2,3.79619]
[1727784096285,3.79564,2634.6,2634.2,4.7202884]
[1727784096486,3.79564,2634.6,2634.3,0.1057597]
[1727784096792,7.82228979,2634.7,2634.2,4.7202884]
[1727784097125,7.82228979,2634.7,2634.4,0.10564009]
[1727784097421,7.82228979,2634.7,2634.5,0.1055205]
[1727784097927,7.82228979,2634.7,2634.6,0.10540091]
[1727784098224,7.82228979,2634.7,2634.2,3.79612]
[1727784098427,11.61792979,2634.7,2634.2,3.79612]
[1727784098592,11.61792979,2634.7,2634.3,0.1057597]
[1727784099000,11.61792979,2634.7,2634.2,3.79612]
[1727784099221,11.61792979,2634.7,2634.4,0.10564009]
[1727784099222,7.82228979,2634.7,2634.4,0.10564009]
[1727784099427,11.61788979,2634.7,2634.3,0.1057597]
[1727784099602,11.61788979,2634.7,2634.2,4.636201]
[1727784099603,7.82228979,2634.7,2634.5,0.1055205]
[1727784099805,11.61786979,2634.7,2634.4,0.10564009]
[1727784100121,11.61786979,2634.7,2634.2,3.79612]
[1727784100122,7.82228979,2634.7,2634.5,0.1055205]
[1727784100435,6.20393608,2634.7,2634.3,0.8117]
[1727784100649,1.58303608,2634.9,2634.7,3.79549]
[1727784100796,1.58303608,2635.1,2634.7,4.60719]
[1727784100996,6.12788608,2635.2,2634.8,0.10511838]
[1727784101232,3.79492,2635.1,2634.8,0.10511838]
[1727784101430,7.58993,2635.1,2634.7,0.8117]
[1727784101597,3.79492,2635.1,2634.9,0.10496557]
[1727784101933,7.58994,2635.1,2634.7,0.8117]
[1727784102118,7.58994,2635.1,2634.8,0.10508513]
[1727784102310,3.79492,2635.1,2634.7,0.8117]
[1727784102497,3.79492,2635.1,2634.8,0.10508513]
[1727784102701,3.79492,2635.1,2634.7,0.8117]
[1727784103201,3.79492,2635.1,2634.8,0.10508513]
[1727784103705,3.79492,2635.1,2634.7,0.8117]
[1727784104119,9.17248608,2635.3,2634.8,0.10508513]
[1727784104431,3.79471,2635.3,2634.8,3.79529]
[1727784104644,3.79471,2635.3,2634.9,0.10496557]
[1727784104841,3.79471,2635.3,2634.9,3.90014557]
[1727784105137,5.77141365,2635.5,2635.1,4.57911]
[1727784105138,5.37740608,2635.5,2635.1,4.57911]
[1727784105498,5.37740608,2635.5,2635.2,0.10460694]
[1727784105996,1.58303608,2635.5,2635.2,0.10460694]
[1727784106203,3.79435,2635.5,2635.2,0.10460694]
[1727784109353,3.79429,2635.6,2635.2,0.10460694]
[1727784109560,3.79439,2635.5,2635.2,0.10460694]
[1727784110355,6.14629608,2635.7,2635.2,4.74718063]
[1727784110554,5.37704608,2635.8,2635.4,0.8011]
[1727784110872,6.52732365,2635.9,2635.5,0.10406919]
[1727784110873,6.13326608,2635.9,2635.5,0.10406919]
[1727784111473,7.75158979,2635.9,2635.5,0.10406919]
[1727784111659,6.16855371,2635.9,2635.5,0.10406919]
[1727784111976,6.16855371,2635.9,2635.5,3.89838919]
[1727784112140,5.37666608,2636.0,2635.5,4.80325892]
[1727784112339,3.79377,2635.9,2635.5,4.80325892]
[1727784112945,3.79377,2635.9,2635.5,1.00893892]
[1727784113851,3.79394,2635.8,2635.5,1.00893892]
[1727784114473,3.79394,2635.8,2635.5,0.10406919]
[1727784114769,7.58793,2635.8,2635.5,0.10406919]
[1727784115072,3.79394,2635.8,2635.5,0.10406919]
[1727784115443,3.79414,2635.7,2635.5,0.10406919]
[1727784115645,5.41252371,2635.6,2635.5,0.10406919]
[1727784115961,5.41252371,2635.6,2635.2,4.5606]
[1727784116144,5.41252371,2635.6,2635.3,0.56032054]
[1727784116343,1.61832371,2635.6,2635.3,0.56032054]
[1727784116553,5.41257371,2635.6,2635.3,0.56032054]
[1727784116932,5.41257371,2635.6,2635.3,0.10426054]
[1727784117134,5.41257371,2635.6,2635.2,0.7659]
[1727784117329,9.20685371,2635.6,2635.3,0.10426054]
[1727784117669,1.61832371,2635.6,2635.2,0.7659]
[1727784117871,5.41259371,2635.6,2635.4,0.10414103]
[1727784118166,5.41259371,2635.6,2635.5,0.10402152]
[1727784118380,5.41259371,2635.6,2635.0,4.61728]
[1727784118687,3.79427,2635.6,2635.2,3.79472]
[1727784118980,3.79427,2635.6,2635.3,0.8736705]
[1727784118981,3.79441,2635.5,2635.3,0.8736705]
[1727784119146,3.79441,2635.5,2635.3,0.10426054]
[1727784119349,5.41259371,2635.6,2635.3,0.10426054]
[1727784119659,5.41259371,2635.6,2635.4,0.10408613]
[1727784119967,5.41259371,2635.6,2635.1,3.79484]
[1727784120137,5.41259371,2635.6,2635.2,4.36074917]
[1727784120333,9.20690371,2635.6,2635.2,0.56603917]
[1727784120532,5.41259371,2635.6,2635.2,0.56603917]
[1727784120766,5.41259371,2635.6,2635.2,4.36074917]
[1727784121334,5.41259371,2635.6,2635.2,4.36071917]
[1727784121672,1.61832371,2635.6,2635.2,8.15542917]
[1727784121831,1.61832371,2635.6,2635.2,4.36071917]
[1727784122034,5.41252371,2635.6,2635.2,4.36071917]
[1727784123270,1.61832371,2635.6,2635.3,4.594]
[1727784123582,1.61832371,2635.6,2635.3,0.90360564]
[1727784123939,5.41252371,2635.6,2635.3,0.90360564]
[1727784126688,6.19103608,2636.0,2635.5,3.79425]
[1727784126835,3.79378,2635.9,2635.5,3.79425]
[1727784127038,3.79378,2635.9,2635.6,0.10383701]
[1727784127540,5.41210371,2635.9,2635.6,0.10383701]
[1727784128883,3.79378,2635.9,2635.6,0.90673701]
[1727784131247,3.79393,2635.8,2635.6,0.90673701]
[1727784132291,4.61043,2635.8,2635.6,0.10383701]
[1727784132455,4.61048,2635.8,2635.4,3.79448]
[1727784132654,7.61048,2635.8,2635.7,0.10366409]
[1727784132859,7.61048,2635.8,2635.3,5.07544896]
[1727784132860,9.22880371,2635.8,2635.3,5.07544896]
[1727784133550,9.22880371,2635.8,2635.4,0.10399514]
[1727784134292,5.43482371,2635.8,2635.4,0.10399514]
[1727784134583,5.43482371,2635.8,2635.5,3.79433]
[1727784134789,5.43482371,2635.8,2635.6,0.10375614]
[1727784135467,5.43482371,2635.8,2635.7,0.1036482]
[1727784135780,5.43482371,2635.8,2635.7,0.10364676]
[1727784136383,5.43482371,2635.8,2635.4,3.79446]
[1727784136596,4.61832371,2635.8,2635.5,4.6812309]
[1727784136776,4.61832371,2635.8,2635.5,4.7851152]
[1727784137655,4.61832371,2635.8,2635.5,0.9908752]
[1727784137879,4.61832371,2635.8,2635.5,0.1038843]
[1727784138185,4.61832371,2635.8,2635.6,0.1037648]
[1727784138951,8.41225371,2635.8,2635.6,0.1037648]
[1727784139292,8.41225371,2635.8,2635.4,3.79445]
[1727784139498,4.61832371,2635.8,2635.7,0.10363231]
[1727784139793,8.41226371,2635.8,2635.7,0.10363231]
[1727784139953,4.61832371,2635.8,2635.7,0.10363231]
[1727784140153,4.61832371,2635.8,2635.4,3.74437]
[1727784140355,4.61832371,2635.8,2635.4,4.6263629]
[1727784140591,3.0,2635.9,2635.4,4.6263629]
[1727784140894,1.61832371,2635.8,2635.5,3.89820141]
[1727784143807,3.79406,2635.7,2635.5,0.10388141]
[1727784144096,1.61832371,2635.6,2635.3,4.55946]
[1727784146782,3.20135979,2635.6,2635.3,4.55946]
[1727784147118,3.20135979,2635.6,2635.3,4.55945]
[1727784148520,1.58303608,2635.5,2635.3,4.55945]
[1727784148708,3.20135979,2635.6,2635.3,4.55945]
[1727784149221,1.58303608,2635.5,2635.3,4.55945]
[1727784150017,1.58303608,2635.5,2635.3,8.354]
[1727784150318,1.58303608,2635.5,2635.3,4.55945]
[1727784150515,1.58303608,2635.5,2635.4,3.79449]
[1727784151126,1.98068724,2635.6,2635.5,3.79434]
[1727784151696,1.98308847,2635.6,2635.5,3.79434]
[1727784152226,1.98308847,2635.7,2635.6,3.7942]
[1727784152431,1.98308847,2635.7,2635.6,4.6181]
[1727784152614,1.58662976,2635.7,2635.6,4.6181]
[1727784152925,1.98308847,2635.8,2635.6,4.6181]
[1727784153289,1.98308847,2635.8,2635.7,0.10363809]
[1727784153489,3.0,2635.9,2635.7,0.10363809]
[1727784153689,6.79379,2635.9,2635.7,0.10363809]
[1727784154509,9.17349617,2635.9,2635.7,0.10363809]
[1727784154704,10.58766,2635.9,2635.7,0.10363809]
[1727784154907,9.17349617,2635.9,2635.7,0.10363809]
[1727784156392,3.79391,2635.8,2635.7,0.10363809]
[1727784157798,3.79391,2635.8,2635.6,0.8239]
[1727784158130,3.79391,2635.8,2635.7,0.10363809]
[1727784159232,6.99904194,2635.9,2635.7,0.10363809]
[1727784159540,8.41219371,2635.9,2635.7,0.10363809]
[1727784161797,1.98384689,2635.8,2635.7,0.10363809]
[1727784161994,14.58656288,2635.9,2635.7,0.10363809]
[1727784162218,10.79268288,2635.9,2635.7,0.10363809]
[1727784162423,8.41219371,2635.9,2635.7,0.10363809]
[1727784162621,10.79268288,2635.9,2635.7,0.10363809]
[1727784162938,3.79391,2635.8,2635.7,0.10363809]
[1727784163305,4.60871,2635.8,2635.7,0.10363809]
[1727784163502,3.79441,2635.5,2635.2,0.7548]
[1727784163747,5.38208341,2635.5,2635.2,2.330274]
[1727784164035,1.58767341,2635.4,2635.2,2.330274]
[1727784165230,3.20599712,2635.4,2635.1,7.41]
[1727784165405,1.58767341,2635.2,2635.1,7.41]
[1727784165603,1.58767341,2635.2,2635.0,0.7703]
[1727784165913,1.58767341,2635.1,2635.0,0.7703]
[1727784167950,1.58767341,2635.2,2635.0,0.7703]
[1727784168147,1.58767341,2635.2,2635.0,1.606368]
[1727784168451,1.58767341,2635.2,2635.1,0.10434649]
[1727784168760,1.58767341,2635.3,2635.1,0.10434649]
[1727784169106,1.58767341,2635.2,2635.1,0.10434649]
[1727784170006,1.58767341,2635.3,2635.1,0.10434649]
[1727784170209,1.58767341,2635.2,2635.1,0.10434649]
[1727784170652,5.38231341,2635.3,2635.1,0.10434649]
[1727784170855,1.58767341,2635.3,2635.1,0.10434649]
[1727784174822,1.58767341,2635.3,2635.1,3.89925649]
[1727784175027,1.58767341,2635.4,2635.1,4.74570914]
[1727784175228,1.58767341,2635.4,2635.1,4.82160006]
[1727784175759,1.58767341,2635.4,2635.2,0.816]
[1727784176139,1.58767341,2635.4,2635.3,0.1041392]
[1727784176849,1.58767341,2635.4,2635.2,0.816]
[1727784177043,1.58767341,2635.4,2635.3,0.1041392]
[1727784177248,1.58767341,2635.4,2635.2,1.74123326]
[1727784177465,1.58767341,2635.4,2635.3,0.1041392]
[1727784177765,1.58767341,2635.4,2635.2,1.74123326]
[1727784180963,1.58767341,2635.5,2635.4,0.10401968]
[1727784181475,1.98384927,2635.7,2635.4,0.87241968]
[1727784181476,1.58767341,2635.6,2635.4,0.87241968]
[1727784181671,1.58767341,2635.7,2635.5,3.79434]
[1727784181839,1.58767341,2635.7,2635.6,4.26087597]
[1727784182037,1.58767341,2635.8,2635.6,4.36465665]
[1727784182964,1.58767341,2635.8,2635.6,0.57045665]
[1727784184845,1.58767341,2635.8,2635.6,0.10378068]
[1727784185388,5.38160341,2635.8,2635.6,0.10378068]
[1727784185673,1.58767341,2635.8,2635.4,4.56278]
[1727784185878,1.58767341,2635.8,2635.7,0.10366119]
[1727784186045,1.58767341,2635.8,2635.5,3.79431]
[1727784186245,1.58767341,2635.8,2635.7,0.10366119]
[1727784186479,1.58767341,2635.8,2635.5,3.79431]
[1727784186657,1.58767341,2635.8,2635.7,0.10366119]
[1727784187064,1.58767341,2635.8,2635.6,3.79418]
[1727784187268,1.58767341,2635.8,2635.7,0.379418]
[1727784187578,1.58767341,2635.8,2635.6,3.79418]
[1727784188472,1.58767341,2635.9,2635.6,3.79418]
[1727784188970,1.58767341,2635.9,2635.5,3.79428]
[1727784189170,1.58767341,2635.8,2635.5,3.79428]
[1727784189666,1.58767341,2635.9,2635.5,3.79428]
[1727784189988,1.58767341,2635.8,2635.5,4.629986]
[1727784190292,1.58767341,2635.9,2635.6,3.79419]
[1727784190855,1.58767341,2635.8,2635.6,3.79419]
[1727784191055,1.58767341,2635.9,2635.6,3.79419]
[1727784191283,1.58767341,2635.9,2635.6,7.58831]
[1727784191595,1.58767341,2635.9,2635.6,8.5075516]
[1727784191959,1.58767341,2635.9,2635.7,3.79398]
[1727784194760,1.58767341,2636.0,2635.7,4.54608]
[1727784195168,1.58767341,2636.0,2635.7,4.54607]
[1727784195580,1.58767341,2636.0,2635.7,4.54604]
[1727784195780,1.58767341,2636.0,2635.7,5.09256816]
[1727784196262,1.58767341,2636.0,2635.8,3.79383]
[1727784197765,1.58767341,2636.0,2635.7,5.09256816]
[1727784197969,4.61832371,2636.1,2635.9,3.79377]
[1727784197970,1.58767341,2636.1,2635.9,3.79377]
[1727784198204,1.58767341,2636.1,2636.0,0.379377]
[1727784198369,1.58767341,2636.1,2636.0,0.10317282]
[1727784198574,1.58767341,2636.2,2636.0,0.10317282]
[1727784202407,1.61832371,2636.1,2636.0,0.10317282]
[1727784202703,1.61832371,2636.1,2635.0,7.41]
[1727784202704,3.79363,2636.0,2635.5,0.8228]
[1727784203014,1.61832371,2635.6,2635.4,3.7944]
[1727784204501,2.38532371,2635.6,2635.2,3.79471]
[1727784204711,6.17953371,2635.6,2635.2,3.79471]
[1727784205474,6.17953371,2635.6,2635.1,0.7531]
[1727784205475,6.17953371,2635.6,2635.1,4.548]
[1727784205675,6.17953371,2635.6,2635.2,3.79474]
[1727784206688,7.76720712,2635.6,2635.2,3.79474]
[1727784207980,2.38532371,2635.6,2635.2,3.79474]
[1727784208409,2.34077341,2635.8,2635.5,3.79423]
[1727784208593,2.34077341,2635.8,2635.4,4.55908]
[1727784208912,0.7531,2635.8,2635.6,3.79409]
[1727784209488,1.58767341,2635.9,2635.6,3.79409]
[1727784209694,3.95669712,2636.0,2635.7,3.79398]
[1727784210013,3.0,2635.6,2635.1,3.79479]
[1727784210175,3.0,2635.6,2635.0,12.00877]
[1727784210176,1.61832371,2635.5,2635.2,3.79476]
[1727784210380,3.20431732,2635.5,2635.1,3.7949]
[1727784210605,3.20431732,2635.5,2635.1,5.375267]
[1727784211605,1.58599361,2635.5,2635.1,5.375267]
[1727784212103,0.7654,2635.4,2635.1,1.580367]
[1727784212305,0.7654,2635.4,2635.0,8.2138]
[1727784212306,4.55989,2635.4,2635.0,7.41]
[1727784212515,4.55989,2635.4,2634.9,3.7952]
[1727784213428,4.55989,2635.4,2635.0,3.89605336]
[1727784213626,6.14588361,2635.4,2635.0,3.89605336]
[1727784215103,2.35139361,2635.4,2635.0,7.69103336]
[1727784215318,2.35139361,2635.4,2635.0,3.89597336]
[1727784215647,2.35139361,2635.4,2635.0,7.69095336]
[1727784216132,2.35139361,2635.4,2635.1,3.7948]
[1727784216319,2.35139361,2635.4,2635.1,3.89567382]
[1727784216697,0.7654,2635.4,2635.1,3.89567382]
[1727784218127,5.38034361,2635.5,2635.1,3.89567382]
[1727784218997,5.38034361,2635.5,2635.1,0.10087382]
[1727784219197,9.17482361,2635.5,2635.1,0.10087382]
[1727784219809,5.38034361,2635.5,2635.1,0.10087382]
[1727784220429,3.79449,2635.4,2635.1,0.10087382]
[1727784220633,1.58599361,2635.5,2635.1,0.10087382]
[1727784220935,5.38040361,2635.5,2635.1,0.10087382]
[1727784221432,3.79453,2635.4,2635.1,0.10087382]
[1727784222117,0.7789,2635.2,2634.8,4.60215]
[1727784222326,0.7789,2635.2,2634.8,5.062365]
[1727784222697,4.57367,2635.2,2634.8,0.460215]
[1727784222900,3.79508,2635.0,2634.5,7.41]
[1727784223115,3.7955,2634.7,2634.4,19.43]
[1727784223415,3.7955,2634.7,2634.2,4.58449]
[1727784224232,0.8105,2634.8,2634.2,4.58449]
[1727784224535,0.8105,2634.8,2634.0,7.41]
[1727784224536,0.7738,2634.2,2634.0,3.79641]
[1727784224835,3.79551,2634.7,2634.1,4.62647]
[1727784224836,0.815,2634.6,2634.1,4.62647]
[1727784225598,0.815,2634.6,2634.2,3.79621]
[1727784226833,0.815,2634.6,2634.3,3.796]
[1727784227532,3.79535,2634.8,2634.4,3.79589]
[1727784227533,3.0,2634.8,2634.4,3.79589]
[1727784227737,4.57589,2634.9,2634.4,3.79589]
[1727784227937,0.7806,2634.9,2634.5,3.79571]
[1727784228248,0.7806,2634.9,2634.5,5.37627]
[1727784228448,0.7806,2634.9,2634.6,0.1015661]
[1727784228449,4.57582,2634.9,2634.6,0.1015661]
[1727784228614,0.7806,2634.9,2634.6,0.1015661]
[1727784229559,4.60262,2635.1,2634.6,3.8971361]
[1727784230617,8.39765,2635.1,2634.6,3.8971361]
[1727784230814,0.8076,2635.1,2634.7,3.79547]
[1727784231142,0.8076,2635.1,2634.8,0.10132695]
[1727784231347,0.8076,2635.1,2634.7,3.79547]
[1727784231525,0.8076,2635.1,2634.9,0.10120739]
[1727784231727,0.8076,2635.1,2634.7,3.79547]
[1727784231928,0.8076,2635.1,2635.0,0.10108783]
[1727784232128,4.60252,2635.1,2634.6,7.59112]
[1727784232448,4.60252,2635.1,2635.0,0.10108783]
[1727784232650,4.60252,2635.1,2634.6,3.79555]
[1727784232811,4.60252,2635.1,2635.0,0.10115083]
[1727784233020,3.79507,2635.0,2634.6,3.79555]
[1727784233227,3.79507,2635.0,2634.7,0.461695]
[1727784234727,4.60259,2635.1,2634.7,0.461695]
[1727784235255,0.8076,2635.1,2634.7,4.257115]
[1727784235618,4.60253,2635.1,2634.7,4.257115]
[1727784235823,0.8076,2635.1,2634.8,0.8052665]
[1727784236359,3.0,2635.3,2634.8,4.6005365]
[1727784236517,6.79472,2635.3,2634.8,4.6005365]
[1727784236955,6.79472,2635.3,2634.9,3.79519]
[1727784237660,3.0,2635.3,2634.8,4.6005965]
[1727784237859,3.79489,2635.2,2634.8,4.6006065]
[1727784238262,7.58974,2635.2,2634.8,4.6006065]
[1727784238869,3.79485,2635.2,2634.8,4.6006065]
[1727784239679,3.79485,2635.2,2634.9,0.46006065]
[1727784240037,3.79485,2635.2,2634.8,4.6006065]
[1727784240761,6.79471,2635.3,2634.8,4.6005165]
[1727784240964,6.79471,2635.3,2634.8,8.38997]
[1727784241335,6.79471,2635.3,2634.8,4.59472]
[1727784242021,3.79478,2635.2,2634.8,4.59472]
[1727784243223,3.79478,2635.2,2634.9,0.10127039]
[1727784243427,4.54506,2635.1,2634.9,0.10127039]
[1727784243960,0.7501,2635.1,2634.7,3.79549]
[1727784244145,0.7501,2635.1,2635.0,0.10119808]
[1727784244345,0.7501,2635.1,2634.7,4.629702]
[1727784244767,0.7501,2635.1,2634.8,0.10143719]
[1727784244919,0.7501,2635.1,2634.7,4.629702]
[1727784245320,0.7501,2635.1,2634.8,0.10143719]
[1727784245547,4.60901,2634.9,2634.8,0.10143719]
[1727784245766,4.60901,2634.9,2634.3,0.7708]
[1727784246066,3.79537,2634.8,2634.4,0.10191552]
[1727784247749,0.7712,2634.6,2634.4,0.10191552]
[1727784247937,4.56691,2634.6,2634.1,8.2411]
[1727784248139,4.56691,2634.6,2634.2,0.82411]
[1727784248359,4.56691,2634.6,2634.2,0.92632774]
[1727784248529,3.79579,2634.5,2634.2,0.10221774]
[1727784249466,4.2828688,2634.6,2634.2,0.10221774]
[1727784250662,8.0785488,2634.6,2634.2,0.10221774]
[1727784251738,3.79584,2634.5,2634.2,0.10221774]
[1727784252069,8.0785488,2634.6,2634.2,0.10221774]
[1727784252070,3.796,2634.4,2634.2,0.10221774]
[1727784252274,7.59206,2634.4,2634.2,0.10221774]
[1727784252436,3.79607,2634.3,2633.9,20.197]
[1727784252760,3.79607,2634.3,2634.0,19.43]
[1727784252964,7.3076688,2634.4,2634.0,19.43]
[1727784254436,3.796,2634.4,2634.0,19.43]
[1727784254765,1.58599361,2634.5,2634.0,23.22641]
[1727784254938,1.58599361,2634.5,2634.1,2.35249618]
[1727784255140,5.38163361,2634.6,2634.2,4.56191]
[1727784255340,9.17740361,2634.6,2634.2,0.7657]
[1727784255539,5.38163361,2634.6,2634.2,0.7657]
[1727784256056,7.59136,2634.6,2634.2,0.7657]
[1727784256964,8.38156361,2634.7,2634.2,7.57592662]
[1727784257174,3.7957,2634.6,2634.2,7.57592662]
[1727784257333,5.38155361,2634.7,2634.2,7.57592662]
[1727784257547,5.38155361,2634.7,2634.3,4.55363266]
[1727784257756,5.38149361,2634.7,2634.3,4.55363266]
[1727784258371,5.38149361,2634.7,2634.4,0.10206159]
[1727784261569,3.79567,2634.6,2634.4,0.10206159]
[1727784262062,3.79578,2634.5,2634.4,0.10206159]
[1727784262777,3.79578,2634.5,2634.4,0.10204583]
[1727784262994,8.0981488,2634.5,2634.4,0.10204583]
[1727784263289,8.0981488,2634.5,2633.8,3.79677]
[1727784263290,4.3023688,2634.5,2633.8,0.771]
[1727784263492,7.3079488,2634.2,2633.8,4.56779]
[1727784263693,7.3079488,2634.2,2633.9,0.10264395]
[1727784265797,3.79608,2634.3,2633.9,0.10264395]
[1727784267404,3.79608,2634.3,2633.9,0.56967935]
[1727784267564,3.79608,2634.3,2633.9,3.89927395]
[1727784268076,3.79608,2634.3,2633.9,0.10264395]
[1727784268584,3.79623,2634.2,2633.9,0.10264395]
[1727784271101,3.79608,2634.3,2633.9,0.10264395]
[1727784271302,7.59229,2634.3,2633.9,0.10264395]
[1727784271782,3.79608,2634.3,2633.9,0.10264395]
[1727784274279,3.79608,2634.3,2633.9,0.10264395]
[1727784274502,7.59226,2634.3,2633.9,0.10264395]
[1727784275211,3.79608,2634.3,2633.9,0.10264395]
[1727784275514,3.79624,2634.2,2633.9,0.10264395]
[1727784281124,5.41833448,2634.3,2633.9,0.10264395]
[1727784281495,3.79626,2634.2,2633.9,0.10264395]
[1727784283486,5.41833448,2634.3,2633.9,0.10264395]
[1727784284125,1.62223448,2634.3,2633.9,0.10264395]
[1727784284297,3.79623,2634.2,2633.9,0.10264395]
[1727784285325,1.58519205,2634.5,2634.2,3.79621]
[1727784285527,1.58519205,2634.6,2634.1,4.55121]
[1727784285695,3.79579,2634.5,2634.3,0.10220554]
[1727784286022,3.79579,2634.5,2634.4,0.10208593]
[1727784286220,3.79579,2634.5,2634.2,0.455121]
[1727784286527,1.58519205,2634.7,2634.4,0.7549]